fUSD/lending_fUSD_20250123
["ID","MTS","AMOUNT","RATE_DAILY","PERIOD"]
[350151875,1737657048150,-702.69,0.00016438,2]
[350151876,1737657048160,-500.0,0.00016438,2]
[350151877,1737657048170,-500.0,0.00016438,2]
[350151878,1737657048179,-515.930378,0.00016438,2]
[350151879,1737657048190,-500.0,0.00016438,2]
[350151880,1737657048199,-500.0,0.00016438,2]
[350151881,1737657048209,-500.0,0.00016438,2]
[350151882,1737657048218,-524.599165,0.00016438,2]
[350151883,1737657048228,-317.67565624,0.00016444,2]
[350151884,1737657048239,-1281.63925789,0.00016444,2]
[350151885,1737657048249,-5000.0,0.00016444,2]
[350151886,1737657048259,-159.47,0.00016469,2]
[350151887,1737657048269,-430.64066539,0.00016491,2]
[350151888,1737657048280,-435.2896,0.00016511,2]
[350151889,1737657048290,-2117.43796847,0.00016532,2]
[350151890,1737657048300,-190.89066159,0.00016533,2]
[350151891,1737657048310,-1594.89,0.00016543,2]
[350151892,1737657048319,-455.274541,0.00016543,2]
[350151893,1737657048328,-500.0,0.00016543,2]
[350151894,1737657048338,-500.0,0.00016543,2]
[350151895,1737657048348,-620.56,0.00016543,2]
[350151896,1737657048357,-599.18,0.00016543,2]
[350151897,1737657048368,-159.772266,0.00016543,2]
[350151898,1737657048377,-500.0,0.00016543,2]
[350151899,1737657048386,-500.0,0.00016543,2]
[350151900,1737657048396,-1038.61,0.00016543,2]
[350151901,1737657048406,-673.94,0.00016543,2]
[350151902,1737657048416,-1783.89,0.00016543,2]
[350151903,1737657048426,-842.21,0.00016543,2]
[350151904,1737657048436,-1203.35,0.00016543,2]
[350151905,1737657048445,-2126.51,0.00016543,2]
[350151906,1737657048455,-809.51,0.00016543,2]
[350151907,1737657048466,-2130.58,0.00016543,2]
[350151908,1737657048476,-2293.97,0.00016543,2]
[350151909,1737657048486,-895.44,0.00016543,2]
[350151910,1737657048495,-3981.94,0.00016543,2]
[350151911,1737657048505,-1783.95,0.00016543,2]
[350151912,1737657048514,-1927.72,0.00016543,2]
[350151913,1737657048524,-35.94076519,0.00016543,2]
[350151914,1737657048540,-311.080001,0.00016543,2]
[350151915,1737657048552,-361.50923381,0.00016543,2]
[350151916,1737657048562,-736.1689835,0.00016543,2]
[350151918,1737657120713,-229.17,0.00015788,2]
[350151919,1737657120736,-415.9666186,0.00016377,2]
[350151920,1737657120757,-500.0,0.00016438,2]
[350151921,1737657120779,-500.0,0.00016438,2]
[350151922,1737657120804,-500.0,0.00016438,2]
[350151923,1737657120827,-500.0,0.00016438,2]
[350151924,1737657120850,-594.71,0.00016438,2]
[350151925,1737657120878,-500.0,0.00016438,2]
[350151926,1737657120900,-500.0,0.00016438,2]
[350151927,1737657120923,-500.0,0.00016438,2]
[350151928,1737657120947,-500.0,0.00016438,2]
[350151929,1737657120971,-500.0,0.00016438,2]
[350151930,1737657120994,-574.21,0.00016438,2]
[350151931,1737657121016,-500.0,0.00016438,2]
[350151932,1737657121037,-500.0,0.00016438,2]
[350151933,1737657121059,-500.0,0.00016438,2]
[350151934,1737657121082,-500.0,0.00016438,2]
[350151935,1737657121102,-500.0,0.00016438,2]
[350151936,1737657121128,-500.0,0.00016438,2]
[350151937,1737657121150,-500.0,0.00016438,2]
[350151938,1737657121173,-500.0,0.00016438,2]
[350151939,1737657121193,-500.0,0.00016438,2]
[350151940,1737657121216,-436.304769,0.00016438,2]
[350151941,1737657121237,-500.0,0.00016438,2]
[350151942,1737657121262,-500.0,0.00016438,2]
[350151943,1737657121284,-500.0,0.00016438,2]
[350151944,1737657121306,-500.0,0.00016438,2]
[350151945,1737657121328,-500.0,0.00016438,2]
[350151946,1737657121350,-500.0,0.00016438,2]
[350151947,1737657121376,-500.0,0.00016438,2]
[350151948,1737657121398,-500.0,0.00016438,2]
[350151949,1737657121422,-995.33,0.00016438,2]
[350151950,1737657121445,-500.0,0.00016438,2]
[350151951,1737657121471,-500.0,0.00016438,2]
[350151952,1737657121493,-500.0,0.00016438,2]
[350151953,1737657121516,-500.0,0.00016438,2]
[350151954,1737657121538,-645.86,0.00016438,2]
[350151955,1737657121561,-513.07,0.00016438,2]
[350151956,1737657121582,-500.0,0.00016438,2]
[350151957,1737657121603,-500.0,0.00016438,2]
[350151958,1737657121628,-500.0,0.00016438,2]
[350151959,1737657121652,-500.0,0.00016438,2]
[350151960,1737657121675,-500.0,0.00016438,2]
[350151961,1737657121697,-500.0,0.00016438,2]
[350151962,1737657121721,-500.0,0.00016438,2]
[350151963,1737657121744,-807.12,0.00016438,2]
[350151964,1737657121764,-500.0,0.00016438,2]
[350151965,1737657121786,-500.0,0.00016438,2]
[350151966,1737657121809,-1709.56,0.00016438,2]
[350151967,1737657121832,-500.0,0.00016438,2]
[350151968,1737657121853,-500.0,0.00016438,2]
[350151969,1737657121878,-1153.21,0.00016438,2]
[350151970,1737657121900,-2037.91,0.00016438,2]
[350151971,1737657121922,-500.0,0.00016438,2]
[350151972,1737657121944,-500.0,0.00016438,2]
[350151973,1737657121964,-500.0,0.00016438,2]
[350151974,1737657121986,-500.0,0.00016438,2]
[350151975,1737657122008,-500.0,0.00016438,2]
[350151976,1737657122029,-500.47216521,0.00016438,2]
[350151977,1737657122051,-500.0,0.00016438,2]
[350151978,1737657122071,-500.0,0.00016438,2]
[350151979,1737657122093,-500.0,0.00016438,2]
[350151980,1737657122118,-775.78,0.00016438,2]
[350151981,1737657122139,-500.0,0.00016438,2]
[350151982,1737657122160,-500.0,0.00016438,2]
[350151983,1737657122182,-500.0,0.00016438,2]
[350151984,1737657122205,-2041.81,0.00016438,2]
[350151985,1737657122227,-500.0,0.00016438,2]
[350151986,1737657122248,-452.32791764,0.00016438,2]
[350151987,1737657122269,-500.0,0.00016438,2]
[350151988,1737657122293,-500.0,0.00016438,2]
[350151989,1737657122315,-339.87647415,0.00016443,2]
[350151990,1737657122335,-339.87647415,0.00016444,2]
[350151991,1737657122358,-339.87647415,0.00016444,2]
[350151992,1737657122380,-363.5710165,0.00016543,2]
[350151993,1737657122402,-500.0,0.00016543,2]
[350151994,1737657122424,-2412.3,0.00016543,2]
[350151995,1737657122447,-1128.84,0.00016543,2]
[350151996,1737657122470,-935.69,0.00016543,2]
[350151997,1737657122491,-500.0,0.00016543,2]
[350151998,1737657122514,-873.6,0.00016543,2]
[350151999,1737657122536,-952.23,0.00016543,2]
[350152000,1737657122713,-752.53,0.00016543,2]
[350152001,1737657122737,-1995.3,0.00016543,2]
[350152002,1737657122759,-856.91,0.00016543,2]
[350152003,1737657122781,-1302.82,0.00016543,2]
[350152004,1737657122805,-764.67,0.00016543,2]
[350152005,1737657122828,-689.32,0.00016543,2]
[350152006,1737657122849,-455.28739896,0.00016544,2]
[350152007,1737657122872,-500.0,0.00016544,2]
[350152008,1737657122893,-500.0,0.00016544,2]
[350152009,1737657122915,-502.67242837,0.00016544,2]
[350152010,1737657122938,-500.0,0.00016544,2]
[350152011,1737657122959,-500.0,0.00016544,2]
[350152012,1737657122981,-500.0,0.00016544,2]
[350152013,1737657123002,-500.0,0.00016544,2]
[350152014,1737657123025,-500.0,0.00016544,2]
[350152015,1737657123048,-258.44111925,0.00016544,2]
[350152016,1737657123071,-500.0,0.00016544,2]
[350152017,1737657123093,-500.0,0.00016544,2]
[350152018,1737657123116,-501.63691262,0.00016544,2]
[350152019,1737657123139,-500.0,0.00016544,2]
[350152020,1737657123161,-501.54069462,0.00016544,2]
[350152021,1737657123183,-500.0,0.00016544,2]
[350152022,1737657123205,-503.15670951,0.00016544,2]
[350152023,1737657123228,-500.0,0.00016544,2]
[350152024,1737657123251,-500.0,0.00016544,2]
[350152025,1737657123273,-503.48194667,0.00016544,2]
[350152026,1737657123296,-503.65851433,0.00016544,2]
[350152027,1737657123319,-500.0,0.00016544,2]
[350152028,1737657123340,-500.0,0.00016544,2]
[350152029,1737657123363,-500.0,0.00016544,2]
[350152030,1737657123387,-174.12681345,0.00016544,2]
[350152031,1737657123409,-500.0,0.00016544,2]
[350152032,1737657123431,-500.0,0.00016544,2]
[350152033,1737657123454,-500.0,0.00016544,2]
[350152034,1737657123478,-500.0,0.00016544,2]
[350152035,1737657123503,-500.0,0.00016544,2]
[350152036,1737657123526,-500.0,0.00016544,2]
[350152037,1737657123548,-500.0,0.00016544,2]
[350152038,1737657123571,-500.0,0.00016544,2]
[350152039,1737657123595,-500.0,0.00016544,2]
[350152040,1737657123618,-500.0,0.00016544,2]
[350152041,1737657123646,-500.0,0.00016544,2]
[350152042,1737657123671,-500.0,0.00016544,2]
[350152043,1737657123695,-500.0,0.00016544,2]
[350152044,1737657123721,-500.0,0.00016544,2]
[350152045,1737657123744,-500.0,0.00016544,2]
[350152046,1737657123768,-500.0,0.00016544,2]
[350152047,1737657123791,-500.0,0.00016544,2]
[350152048,1737657123814,-500.0,0.00016544,2]
[350152049,1737657123837,-500.0,0.00016544,2]
[350152050,1737657123861,-500.0,0.00016544,2]
[350152051,1737657123884,-500.0,0.00016544,2]
[350152052,1737657123906,-444.58084135,0.00016544,2]
[350152053,1737657123933,-500.0,0.00016544,2]
[350152054,1737657123956,-500.0,0.00016544,2]
[350152055,1737657123978,-500.0,0.00016544,2]
[350152056,1737657124001,-500.0,0.00016544,2]
[350152057,1737657124023,-500.0,0.00016544,2]
[350152058,1737657124045,-500.0,0.00016544,2]
[350152059,1737657124080,-500.0,0.00016544,2]
[350152060,1737657124102,-500.0,0.00016544,2]
[350152061,1737657124127,-500.0,0.00016544,2]
[350152062,1737657124151,-500.0,0.00016544,2]
[350152063,1737657124172,-500.0,0.00016544,2]
[350152064,1737657124194,-500.0,0.00016544,2]
[350152065,1737657124220,-500.0,0.00016544,2]
[350152066,1737657124241,-500.0,0.00016544,2]
[350152067,1737657124262,-500.0,0.00016544,2]
[350152068,1737657124285,-500.0,0.00016544,2]
[350152069,1737657124307,-500.0,0.00016544,2]
[350152070,1737657124328,-500.0,0.00016544,2]
[350152071,1737657124349,-500.0,0.00016544,2]
[350152072,1737657124372,-500.0,0.00016544,2]
[350152073,1737657124394,-500.0,0.00016544,2]
[350152074,1737657124417,-500.0,0.00016544,2]
[350152075,1737657124439,-508.84,0.00016544,2]
[350152076,1737657124461,-510.13617525,0.00016544,2]
[350152077,1737657124483,-527.8,0.00016544,2]
[350152078,1737657124505,-647.47,0.00016544,2]
[350152079,1737657124527,-592.43,0.00016544,2]
[350152080,1737657124548,-500.0,0.00016544,2]
[350152081,1737657124570,-500.0,0.00016544,2]
[350152082,1737657124591,-511.75,0.00016544,2]
[350152083,1737657124613,-531.47,0.00016544,2]
[350152084,1737657124637,-500.0,0.00016544,2]
[350152085,1737657124659,-500.0,0.00016544,2]
[350152086,1737657124684,-2435.49,0.00016544,2]
[350152087,1737657124706,-500.0,0.00016544,2]
[350152088,1737657124729,-500.0,0.00016544,2]
[350152089,1737657124750,-500.0,0.00016544,2]
[350152090,1737657124772,-674.37,0.00016544,2]
[350152091,1737657124798,-1000.78,0.00016544,2]
[350152092,1737657124821,-460.21654168,0.00016544,2]
[350152093,1737657124845,-1828.72,0.00016544,2]
[350152094,1737657124869,-500.0,0.00016544,2]
[350152095,1737657124891,-500.0,0.00016544,2]
[350152096,1737657124913,-500.0,0.00016544,2]
[350152097,1737657124935,-724.39,0.00016544,2]
[350152098,1737657124963,-500.0,0.00016544,2]
[350152099,1737657124985,-659.01,0.00016544,2]
[350152100,1737657125006,-500.0,0.00016544,2]
[350152101,1737657125028,-500.0,0.00016544,2]
[350152102,1737657125050,-500.0,0.00016544,2]
[350152103,1737657125073,-754.62,0.00016544,2]
[350152104,1737657125095,-500.0,0.00016544,2]
[350152105,1737657125122,-500.0,0.00016544,2]
[350152106,1737657125143,-500.0,0.00016544,2]
[350152107,1737657125165,-500.0,0.00016544,2]
[350152108,1737657125187,-1619.14,0.00016544,2]
[350152109,1737657125208,-500.0,0.00016544,2]
[350152110,1737657125230,-3764.17,0.00016544,2]
[350152111,1737657125251,-500.0,0.00016544,2]
[350152112,1737657125273,-500.0,0.00016544,2]
[350152113,1737657125294,-500.0,0.00016544,2]
[350152114,1737657125316,-705.81,0.00016544,2]
[350152115,1737657125337,-500.0,0.00016544,2]
[350152116,1737657125359,-500.0,0.00016544,2]
[350152117,1737657125380,-500.0,0.00016544,2]
[350152118,1737657125402,-500.0,0.00016544,2]
[350152119,1737657125425,-1015.75,0.00016544,2]
[350152120,1737657125446,-500.0,0.00016544,2]
[350152121,1737657125468,-864.39,0.00016544,2]
[350152122,1737657125491,-500.0,0.00016544,2]
[350152123,1737657125514,-500.0,0.00016544,2]
[350152124,1737657125673,-500.0,0.00016544,2]
[350152125,1737657125699,-500.0,0.00016544,2]
[350152126,1737657125721,-500.0,0.00016544,2]
[350152127,1737657125744,-500.0,0.00016544,2]
[350152128,1737657125768,-500.0,0.00016544,2]
[350152129,1737657125790,-255.17040092,0.00016544,2]
[350152130,1737657125813,-550.66,0.00016544,2]
[350152131,1737657125842,-500.0,0.00016544,2]
[350152132,1737657125864,-500.0,0.00016544,2]
[350152133,1737657125889,-500.0,0.00016544,2]
[350152134,1737657125912,-632.12,0.00016544,2]
[350152135,1737657125935,-3011.91,0.00016544,2]
[350152136,1737657125958,-500.0,0.00016544,2]
[350152137,1737657125981,-500.0,0.00016544,2]
[350152138,1737657126004,-500.0,0.00016544,2]
[350152139,1737657126028,-500.0,0.00016544,2]
[350152140,1737657126062,-669.65,0.00016544,2]
[350152141,1737657126084,-500.0,0.00016544,2]
[350152142,1737657126107,-500.0,0.00016544,2]
[350152143,1737657126130,-627.23,0.00016544,2]
[350152144,1737657126153,-500.0,0.00016544,2]
[350152145,1737657126175,-500.0,0.00016544,2]
[350152146,1737657126198,-765.5,0.00016544,2]
[350152147,1737657126221,-500.0,0.00016544,2]
[350152148,1737657126243,-500.0,0.00016544,2]
[350152149,1737657126266,-500.0,0.00016544,2]
[350152150,1737657126288,-500.0,0.00016544,2]
[350152151,1737657126311,-500.0,0.00016544,2]
[350152152,1737657126334,-1014.59,0.00016544,2]
[350152153,1737657126357,-500.0,0.00016544,2]
[350152154,1737657126379,-500.0,0.00016544,2]
[350152155,1737657126402,-500.0,0.00016544,2]
[350152156,1737657126424,-500.0,0.00016544,2]
[350152157,1737657126447,-500.0,0.00016544,2]
[350152158,1737657126469,-500.0,0.00016544,2]
[350152159,1737657126494,-869.71,0.00016544,2]
[350152160,1737657126519,-1530.2,0.00016544,2]
[350152161,1737657126542,-676.77,0.00016544,2]
[350152162,1737657126565,-500.0,0.00016544,2]
[350152163,1737657126589,-3667.93,0.00016544,2]
[350152164,1737657126613,-500.0,0.00016544,2]
[350152165,1737657126638,-500.0,0.00016544,2]
[350152166,1737657126661,-500.0,0.00016544,2]
[350152167,1737657126687,-754.85,0.00016544,2]
[350152168,1737657126709,-500.0,0.00016544,2]
[350152169,1737657126733,-500.0,0.00016544,2]
[350152170,1737657126756,-500.0,0.00016544,2]
[350152171,1737657126778,-700.34,0.00016544,2]
[350152172,1737657126805,-1388.95,0.00016544,2]
[350152173,1737657126830,-1643.33317738,0.0001659,2]
[350152174,1737657126852,-2447.06897,0.000166,2]
[350152175,1737657126874,-1000.0,0.00016612,2]
[350152176,1737657126896,-2562.308,0.00016632,2]
[350152177,1737657126919,-166.254,0.00016632,2]
[350152178,1737657126943,-800.0,0.000167,6]
[350152179,1737657126967,-256.7,0.000167,2]
[350152180,1737657126991,-2385.5600162,0.00016701,2]
[350152181,1737657127013,-7073.5233663,0.00016701,2]
[350152182,1737657127035,-1006.26165682,0.0001671,5]
[350152183,1737657127062,-753.0,0.0001671,2]
[350152184,1737657127088,-588309.85240692,0.00016711,2]
[350152185,1737657183319,153.63,0.000219,31]
[350152186,1737657183360,153.63,0.000219,31]
[350152187,1737657183429,153.63,0.000219,31]
[350152188,1737657183484,153.63,0.000219,31]
[350152189,1737657183547,153.63,0.000219,31]
[350152190,1737657183677,153.63,0.000219,31]
[350152191,1737657183760,153.63,0.000219,31]
[350152192,1737657429053,25000.0,0.00023,30]
[350152193,1737657489309,714.93613082,0.00023,30]
[350152195,1737657789265,153.64,0.000223,31]
[350152196,1737657789321,153.64,0.000223,31]
[350152197,1737657789384,153.64,0.000223,31]
[350152198,1737657789446,153.64,0.000223,31]
[350152199,1737657789502,153.64,0.000223,31]
[350152200,1737657789560,153.64,0.000223,31]
[350152201,1737657789625,153.64,0.000223,31]
[350152205,1737658073443,153.53,0.00016658,30]
[350152206,1737658073699,153.53,0.00021567,30]
[350152223,1737658232382,-579.79,0.00010137,2]
[350152224,1737658232391,-250.0,0.00013394,2]
[350152225,1737658232400,-765.23,0.00013693,2]
[350152226,1737658232410,-550.0,0.00015,2]
[350152227,1737658232420,-324.59,0.00015119,2]
[350152228,1737658232430,-23900.0,0.00015169,2]
[350152229,1737658232446,-484.72,0.00015219,2]
[350152230,1737658232460,-1000.0,0.00015256,2]
[350152231,1737658232470,-250.0,0.00015292,2]
[350152232,1737658232479,-165.15,0.00015327,2]
[350152233,1737658232488,-2077.2,0.00015364,2]
[350152234,1737658232498,-751.53,0.00015512,2]
[350152235,1737658232507,-250.0,0.00015553,2]
[350152236,1737658232516,-1715.4,0.00015795,2]
[350152237,1737658232525,-159.18,0.00015798,2]
[350152238,1737658232535,-159.18,0.00015825,2]
[350152239,1737658232545,-250.0,0.0001584,2]
[350152240,1737658232554,-159.18,0.00015851,2]
[350152241,1737658232563,-200.0,0.00015869,2]
[350152242,1737658232573,-176.58,0.00015877,2]
[350152243,1737658232582,-159.18,0.00015877,2]
[350152244,1737658232593,-703.22,0.0001591,2]
[350152245,1737658232602,-765.23,0.00015957,2]
[350152246,1737658232615,-150.0,0.00016025,2]
[350152247,1737658232624,-302.64,0.00016078,2]
[350152248,1737658232634,-150.0,0.00016078,2]
[350152249,1737658232643,-150.0,0.00016078,2]
[350152250,1737658232652,-150.0,0.00016078,2]
[350152251,1737658232661,-252.15,0.00016078,2]
[350152252,1737658232671,-437.86,0.00016078,2]
[350152253,1737658232681,-436.56,0.00016247,2]
[350152254,1737658232691,-539.69732819,0.00016277,2]
[350152255,1737658232700,-225.2162,0.00016338,2]
[350152256,1737658232710,-3495.6557,0.00016338,2]
[350152257,1737658232719,-1723.09709851,0.00016373,2]
[350152258,1737658232729,-207.9833093,0.00016377,2]
[350152259,1737658232738,-581.47,0.00016428,2]
[350152260,1737658232748,-6669.81196722,0.00016437,2]
[350152261,1737658232758,-500.0,0.00016438,2]
[350152262,1737658232767,-500.0,0.00016438,2]
[350152263,1737658232777,-208.22629773,0.00016438,2]
[350152265,1737658232787,-500.0,0.00016438,2]
[350152267,1737658232797,-500.0,0.00016438,2]
[350152269,1737658232806,-500.0,0.00016438,2]
[350152271,1737658232816,-500.0,0.00016438,2]
[350152273,1737658232826,-500.0,0.00016438,2]
[350152275,1737658232835,-500.0,0.00016438,2]
[350152277,1737658232845,-500.0,0.00016438,2]
[350152279,1737658232854,-500.0,0.00016438,2]
[350152281,1737658232863,-500.0,0.00016438,2]
[350152283,1737658232873,-500.0,0.00016438,2]
[350152285,1737658232883,-500.0,0.00016438,2]
[350152288,1737658232894,-500.0,0.00016438,2]
[350152290,1737658232903,-500.0,0.00016438,2]
[350152292,1737658232913,-500.0,0.00016438,2]
[350152294,1737658232922,-500.0,0.00016438,2]
[350152296,1737658232932,-500.0,0.00016438,2]
[350152298,1737658232941,-505.28668545,0.00016438,2]
[350152300,1737658232950,-500.0,0.00016438,2]
[350152302,1737658232959,-500.0,0.00016438,2]
[350152304,1737658232969,-500.0,0.00016438,2]
[350152306,1737658232980,-618.05127319,0.00016438,2]
[350152308,1737658232990,-510.86188155,0.00016438,2]
[350152310,1737658232999,-500.0,0.00016438,2]
[350152312,1737658233008,-500.0,0.00016438,2]
[350152314,1737658233018,-500.0,0.00016438,2]
[350152317,1737658233031,-500.0,0.00016438,2]
[350152319,1737658233054,-500.0,0.00016438,2]
[350152321,1737658233064,-500.0,0.00016438,2]
[350152323,1737658233074,-500.0,0.00016438,2]
[350152325,1737658233083,-560.23525961,0.00016438,2]
[350152327,1737658233092,-500.0,0.00016438,2]
[350152329,1737658233102,-500.0,0.00016438,2]
[350152330,1737658233111,-500.0,0.00016438,2]
[350152333,1737658233120,-500.0,0.00016438,2]
[350152334,1737658233130,-606.79998615,0.00016438,2]
[350152337,1737658233140,-500.0,0.00016438,2]
[350152339,1737658233151,-500.0,0.00016438,2]
[350152341,1737658233160,-500.0,0.00016438,2]
[350152343,1737658233170,-295.70367422,0.00016438,2]
[350152345,1737658233179,-500.0,0.00016438,2]
[350152346,1737658233188,-500.0,0.00016438,2]
[350152348,1737658233198,-500.0,0.00016438,2]
[350152350,1737658233207,-500.0,0.00016438,2]
[350152352,1737658233216,-500.0,0.00016438,2]
[350152354,1737658233225,-500.0,0.00016438,2]
[350152356,1737658233235,-500.0,0.00016438,2]
[350152358,1737658233244,-500.0,0.00016438,2]
[350152360,1737658233253,-500.0,0.00016438,2]
[350152362,1737658233263,-500.0,0.00016438,2]
[350152364,1737658233272,-500.0,0.00016438,2]
[350152366,1737658233281,-594.58271872,0.00016438,2]
[350152368,1737658233290,-500.0,0.00016438,2]
[350152370,1737658233302,-520.77391348,0.00016438,2]
[350152372,1737658233311,-163.37013092,0.00016438,2]
[350152374,1737658233320,-500.0,0.00016438,2]
[350152376,1737658233330,-500.0,0.00016438,2]
[350152379,1737658233339,-500.0,0.00016438,2]
[350152380,1737658233348,-500.0,0.00016438,2]
[350152383,1737658233358,-500.0,0.00016438,2]
[350152385,1737658233367,-505.81457257,0.00016438,2]
[350152387,1737658233376,-500.0,0.00016438,2]
[350152389,1737658233386,-500.0,0.00016438,2]
[350152391,1737658233395,-205.7437947,0.00016438,2]
[350152393,1737658233405,-500.0,0.00016438,2]
[350152395,1737658233415,-626.26787992,0.00016438,2]
[350152397,1737658233424,-500.0,0.00016438,2]
[350152399,1737658233433,-500.0,0.00016438,2]
[350152401,1737658233443,-500.0,0.00016438,2]
[350152403,1737658233452,-500.0,0.00016438,2]
[350152404,1737658233462,-500.0,0.00016438,2]
[350152406,1737658233471,-500.0,0.00016438,2]
[350152408,1737658233481,-500.0,0.00016438,2]
[350152411,1737658233490,-500.0,0.00016438,2]
[350152412,1737658233500,-500.0,0.00016438,2]
[350152414,1737658233509,-500.0,0.00016438,2]
[350152417,1737658233520,-500.0,0.00016438,2]
[350152419,1737658233529,-295.95387311,0.00016438,2]
[350152420,1737658233542,-500.0,0.00016438,2]
[350152422,1737658233552,-500.0,0.00016438,2]
[350152424,1737658233561,-500.0,0.00016438,2]
[350152426,1737658233571,-500.0,0.00016438,2]
[350152428,1737658233581,-500.0,0.00016438,2]
[350152430,1737658233590,-500.0,0.00016438,2]
[350152433,1737658233600,-500.0,0.00016438,2]
[350152435,1737658233609,-500.0,0.00016438,2]
[350152436,1737658233619,-500.0,0.00016438,2]
[350152438,1737658233627,-503.74187783,0.00016438,2]
[350152441,1737658233639,-500.0,0.00016438,2]
[350152443,1737658233650,-500.0,0.00016438,2]
[350152445,1737658233659,-500.32583259,0.00016438,2]
[350152447,1737658233669,-500.0,0.00016438,2]
[350152449,1737658233679,-500.0,0.00016438,2]
[350152451,1737658233688,-500.0,0.00016438,2]
[350152453,1737658233698,-500.0,0.00016438,2]
[350152455,1737658233707,-500.0,0.00016438,2]
[350152457,1737658233717,-500.0,0.00016438,2]
[350152459,1737658233727,-500.0,0.00016438,2]
[350152461,1737658233737,-500.0,0.00016438,2]
[350152463,1737658233746,-500.0,0.00016438,2]
[350152465,1737658233756,-500.0,0.00016438,2]
[350152467,1737658233766,-500.0,0.00016438,2]
[350152469,1737658233776,-501.62509503,0.00016438,2]
[350152471,1737658233788,-500.80078046,0.00016438,2]
[350152473,1737658233797,-500.0,0.00016438,2]
[350152475,1737658233808,-500.0,0.00016438,2]
[350152477,1737658233817,-500.0,0.00016438,2]
[350152479,1737658233827,-501.48786702,0.00016438,2]
[350152481,1737658233837,-500.0,0.00016438,2]
[350152483,1737658233847,-500.0,0.00016438,2]
[350152485,1737658233856,-509.59013913,0.00016438,2]
[350152487,1737658233865,-500.0,0.00016438,2]
[350152489,1737658233874,-500.0,0.00016438,2]
[350152491,1737658233883,-500.0,0.00016438,2]
[350152493,1737658233892,-500.0,0.00016438,2]
[350152495,1737658233902,-198.80267523,0.00016438,2]
[350152497,1737658233911,-500.0,0.00016438,2]
[350152499,1737658233920,-412.07012451,0.00016438,2]
[350152501,1737658233930,-500.0,0.00016438,2]
[350152503,1737658233937,-500.0,0.00016438,2]
[350152505,1737658233947,-500.0,0.00016438,2]
[350152507,1737658233955,-500.0,0.00016438,2]
[350152509,1737658233965,-500.0,0.00016438,2]
[350152511,1737658233980,-500.0,0.00016438,2]
[350152513,1737658233989,-500.0,0.00016438,2]
[350152515,1737658233999,-183.91683419,0.00016438,2]
[350152517,1737658234008,-500.0,0.00016438,2]
[350152519,1737658234018,-571.09782189,0.00016438,2]
[350152521,1737658234028,-500.0,0.00016438,2]
[350152523,1737658234039,-500.0,0.00016438,2]
[350152525,1737658234048,-500.0,0.00016438,2]
[350152527,1737658234059,-500.0,0.00016438,2]
[350152529,1737658234069,-500.0,0.00016438,2]